bitfinex-derivatives/quotes_BTCF0:USTF0_20250812
["timestamp","ask_amount","ask_price","bid_price","bid_amount"]
[1755023546491,2.15320711,119800.0,119790.0,0.004]
[1755023547191,2.03320711,119800.0,119790.0,0.004]
[1755023547386,2.14320711,119800.0,119790.0,0.004]
[1755023548485,1.63803289,119800.0,119790.0,0.004]
[1755023548690,2.14320711,119800.0,119790.0,0.004]
[1755023552181,2.03320711,119800.0,119790.0,0.004]
[1755023552488,1.52803289,119800.0,119790.0,0.004]
[1755023552694,2.03320711,119800.0,119790.0,0.004]
[1755023553198,1.52803289,119800.0,119790.0,0.004]
[1755023553390,0.74527289,119800.0,119790.0,0.004]
[1755023553582,1.52803289,119800.0,119790.0,0.54143422]
[1755023554200,1.52803289,119800.0,119790.0,0.03626]
[1755023555394,1.52803289,119800.0,119790.0,0.1197355]
[1755023555692,1.52803289,119800.0,119790.0,0.03626]
[1755023556194,0.74527289,119800.0,119790.0,0.73344972]
[1755023556391,1.52803289,119800.0,119790.0,0.73344972]
[1755023556793,0.74527289,119800.0,119790.0,0.73344972]
[1755023556996,1.52803289,119800.0,119790.0,0.73344972]
[1755023557392,1.52803289,119800.0,119790.0,0.2282755]
[1755023557599,1.52803289,119800.0,119790.0,0.73344972]
[1755023557991,1.52803289,119800.0,119790.0,0.2282755]
[1755023558188,1.52803289,119800.0,119790.0,0.004]
[1755023558393,2.03320711,119800.0,119790.0,0.004]
[1755023558595,2.14320711,119800.0,119790.0,0.004]
[1755023558790,2.03320711,119800.0,119790.0,0.004]
[1755023559797,2.03320711,119800.0,119790.0,0.001]
[1755023559992,2.03420711,119800.0,119790.0,0.001]
[1755023560290,2.03420711,119800.0,119780.0,0.58875572]
[1755023560497,0.2241157,119790.0,119780.0,0.58875572]
[1755023560797,0.2241157,119790.0,119780.0,0.58875682]
[1755023560998,0.2241157,119790.0,119780.0,0.0835826]
[1755023561199,0.2241157,119790.0,119780.0,0.50527422]
[1755023561390,0.2241157,119790.0,119780.0,0.58875682]
[1755023561896,0.2241157,119790.0,119780.0,0.03236]
[1755023562197,0.2241157,119790.0,119780.0,0.53753422]
[1755023562398,0.2241157,119790.0,119780.0,0.50527422]
[1755023562698,0.2241157,119790.0,119780.0,0.0001]
[1755023563196,0.72928992,119790.0,119780.0,0.0001]
[1755023563397,0.73028992,119790.0,119780.0,0.0001]
[1755023563598,0.85028992,119790.0,119780.0,0.0001]
[1755023563996,0.73028992,119790.0,119780.0,0.0001]
[1755023564191,0.2251157,119790.0,119780.0,0.0001]
[1755023564992,0.2251157,119790.0,119780.0,0.0835828]
[1755023565301,0.9876859,119790.0,119780.0,0.72955702]
[1755023565601,1.0077959,119790.0,119780.0,0.72955702]
[1755023566007,0.92432,119790.0,119780.0,0.72955702]
[1755023566303,1.0077956,119790.0,119780.0,0.72955702]
[1755023566503,0.92432,119790.0,119780.0,0.72955702]
[1755023567203,1.0077956,119790.0,119780.0,0.72955702]
[1755023567800,0.92432,119790.0,119780.0,0.72955702]
[1755023568003,0.001,119790.0,119780.0,0.72955702]
[1755023568200,0.001,119790.0,119780.0,0.89652502]
[1755023569095,1.38468539,119800.0,119790.0,0.0834756]
[1755023569299,1.41573539,119800.0,119790.0,0.72944982]
[1755023569504,1.33226659,119800.0,119790.0,0.72944982]
[1755023569995,1.41573519,119800.0,119790.0,0.72944982]
[1755023570407,1.30121659,119800.0,119790.0,0.72944982]
[1755023570602,0.80131659,119800.0,119790.0,0.72944982]
[1755023570905,0.51853659,119800.0,119790.0,0.89640182]
[1755023571105,0.51853659,119800.0,119790.0,1.45157604]
[1755023571412,0.51853659,119800.0,119790.0,0.94640182]
[1755023572001,0.51953659,119800.0,119790.0,0.94640182]
[1755023572814,0.01963659,119800.0,119790.0,0.94840182]
[1755023573506,0.01863659,119800.0,119790.0,0.94840182]
[1755023574212,0.04968659,119800.0,119790.0,0.94840182]
[1755023574508,0.08382659,119800.0,119790.0,0.89840182]
[1755023575504,0.04968659,119800.0,119790.0,0.89840182]
[1755023576108,0.08382659,119800.0,119790.0,0.89840182]
[1755023576505,0.13916659,119800.0,119790.0,0.73144982]
[1755023576704,0.15927659,119800.0,119790.0,0.73144982]
[1755023577405,0.15927659,119800.0,119790.0,0.2262756]
[1755023577598,0.24274519,119800.0,119790.0,0.73144982]
[1755023578603,0.24274519,119800.0,119790.0,0.69969982]
[1755023578810,0.24274519,119800.0,119790.0,0.73144982]
[1755023579004,0.24374519,119800.0,119790.0,0.73144982]
[1755023579205,0.24374519,119800.0,119790.0,0.72944982]
[1755023579809,0.24374519,119800.0,119790.0,0.69769982]
[1755023580007,0.24374519,119800.0,119790.0,0.69895982]
[1755023580203,0.24374519,119800.0,119790.0,0.2228256]
[1755023580511,0.24374519,119800.0,119790.0,0.69895982]
[1755023580710,0.24374519,119800.0,119790.0,0.72799982]
[1755023581509,0.24374519,119800.0,119790.0,0.0834756]
[1755023581810,0.2208856,119790.0,119780.0,0.95003072]
[1755023582110,1.0033656,119790.0,119780.0,0.78306512]
[1755023582309,1.0033656,119790.0,119780.0,0.67223512]
[1755023582510,1.0033656,119790.0,119780.0,0.70635512]
[1755023582706,1.0033656,119790.0,119780.0,0.0001]
[1755023582908,1.50853982,119790.0,119780.0,0.0001]
[1755023583103,1.0033656,119790.0,119780.0,0.0001]
[1755023583303,1.0033656,119790.0,119780.0,0.0835826]
[1755023583607,1.0033656,119790.0,119780.0,0.0001]
[1755023583811,1.50853982,119790.0,119780.0,0.0001]
[1755023584013,1.50853982,119790.0,119780.0,0.0021]
[1755023584313,1.0033656,119790.0,119780.0,0.0855825]
[1755023584811,1.0033656,119790.0,119780.0,0.0021]
[1755023585006,1.0043656,119790.0,119780.0,0.0021]
[1755023585312,1.0043656,119790.0,119780.0,0.0855825]
[1755023585513,1.0043656,119790.0,119780.0,0.0835825]
[1755023585714,1.0043656,119790.0,119780.0,0.0001]
[1755023587319,1.1043656,119790.0,119780.0,0.0001]
[1755023587619,1.61953982,119790.0,119780.0,0.0001]
[1755023588117,1.50953982,119790.0,119780.0,0.0001]
[1755023588317,1.0043656,119790.0,119780.0,0.0001]
[1755023588613,1.62953982,119790.0,119780.0,0.0001]
[1755023588916,1.0043656,119790.0,119780.0,0.0001]
[1755023589117,1.50953982,119790.0,119780.0,0.0001]
[1755023590124,1.0043656,119790.0,119780.0,0.0001]
[1755023590308,1.50953982,119790.0,119780.0,0.0001]
[1755023590706,1.0043656,119790.0,119780.0,0.0001]
[1755023590910,1.5042656,119790.0,119780.0,0.0001]
[1755023591420,1.5042656,119790.0,119780.0,0.1177025]
[1755023591615,1.5042656,119790.0,119780.0,0.62167672]
[1755023591819,1.5042656,119790.0,119780.0,0.72862672]
[1755023592714,1.5042656,119790.0,119780.0,0.0001]
[1755023593017,2.00943982,119790.0,119780.0,0.0001]
[1755023593519,2.01175982,119790.0,119780.0,0.0001]
[1755023594120,1.5065856,119790.0,119780.0,0.0001]
[1755023596923,2.13175982,119790.0,119780.0,0.0001]
[1755023597425,2.01175982,119790.0,119780.0,0.0001]
[1755023597811,1.5065856,119790.0,119780.0,0.0001]
[1755023598622,1.5065856,119790.0,119780.0,0.03422]
[1755023599622,1.5065856,119790.0,119780.0,0.0001]
[1755023601420,1.5060256,119790.0,119780.0,0.0001]
[1755023603924,2.01119982,119790.0,119780.0,0.0001]
[1755023605128,2.13119982,119790.0,119780.0,0.0001]
[1755023606524,1.5049056,119790.0,119780.0,0.0001]
[1755023607524,0.1913234,119750.0,119740.0,0.97907812]
[1755023607818,0.2209134,119750.0,119740.0,0.97907812]
[1755023608214,0.2209134,119750.0,119740.0,0.4739039]
[1755023608420,0.2209134,119750.0,119740.0,0.97907812]
[1755023608725,0.2209134,119750.0,119740.0,0.98507812]
[1755023608929,0.0835034,119750.0,119740.0,0.98507812]
[1755023609326,0.1123934,119750.0,119740.0,0.98507812]
[1755023609529,0.1443534,119750.0,119740.0,0.98507812]
[1755023609725,0.1443534,119750.0,119740.0,0.98807812]
[1755023610226,0.2204834,119750.0,119740.0,0.98807812]
[1755023610423,0.2204834,119750.0,119740.0,0.98707812]
[1755023610928,0.23520701,119750.0,119740.0,0.98707812]
[1755023611527,0.26716701,119750.0,119740.0,0.98707812]
[1755023611727,0.26716701,119750.0,119740.0,0.98507812]
[1755023612026,0.15089701,119750.0,119740.0,0.98507812]
[1755023612326,0.17978701,119750.0,119740.0,0.98507812]
[1755023612529,0.28787701,119750.0,119740.0,0.98507812]
[1755023614631,0.28787701,119750.0,119740.0,0.4799039]
[1755023615230,0.28787701,119750.0,119740.0,0.98507812]
[1755023616134,0.28787701,119750.0,119740.0,0.4799039]
[1755023616437,0.28787701,119750.0,119740.0,0.98507812]
[1755023619428,0.21349701,119750.0,119740.0,0.98507812]
[1755023620133,0.24545701,119750.0,119740.0,0.98507812]
[1755023620332,0.28787701,119750.0,119740.0,0.98507812]
[1755023622042,0.79305123,119750.0,119740.0,0.3963939]
[1755023622634,0.79305123,119750.0,119740.0,0.3465939]
[1755023622837,0.79305123,119750.0,119740.0,0.3445939]
[1755023623142,0.79305123,119750.0,119740.0,0.3455939]
[1755023623343,0.28787701,119750.0,119740.0,0.3935639]
[1755023624242,0.28787701,119750.0,119740.0,0.3895639]
[1755023624439,0.79305123,119750.0,119740.0,0.1194262]
[1755023624643,0.79305123,119750.0,119740.0,0.0865104]
[1755023624842,0.91305123,119750.0,119740.0,0.0865104]
[1755023625243,0.79305123,119750.0,119740.0,0.0865104]
[1755023626044,0.90305123,119750.0,119740.0,0.003]
[1755023626446,0.1916144,119720.0,119710.0,0.45409836]
[1755023626748,1.0033044,119720.0,119710.0,0.2214779]
[1755023627155,1.0033044,119720.0,119710.0,0.2014979]
[1755023627449,1.0033044,119720.0,119710.0,0.2214779]
[1755023627949,1.0033044,119720.0,119710.0,0.72665212]
[1755023628849,1.0043044,119720.0,119710.0,0.72665212]
[1755023630147,1.0043044,119720.0,119710.0,0.2214779]
[1755023630544,1.0043044,119720.0,119710.0,0.1934879]
[1755023631255,1.0043044,119720.0,119710.0,0.72665212]
[1755023631449,1.5042044,119720.0,119710.0,0.72665212]
[1755023632450,1.5042044,119720.0,119710.0,0.1934879]
[1755023632652,1.5042044,119720.0,119710.0,0.1735079]
[1755023632953,2.00937862,119720.0,119710.0,0.0835279]
[1755023633759,1.5042044,119720.0,119710.0,0.0835279]
[1755023634356,1.5042044,119720.0,119710.0,0.1172079]
[1755023634555,1.5042044,119720.0,119710.0,0.1706579]
[1755023634756,1.5042044,119720.0,119710.0,0.1934879]
[1755023634943,1.5042044,119720.0,119710.0,0.2214779]
[1755023635348,0.7214044,119720.0,119710.0,0.2214779]
[1755023635557,1.5073644,119720.0,119710.0,0.2214779]
[1755023635850,1.5073644,119720.0,119710.0,0.1934879]
[1755023636654,1.5073644,119720.0,119710.0,0.1735079]
[1755023637452,1.5073644,119720.0,119710.0,0.0835279]
[1755023637650,0.2205113,119710.0,119700.0,0.89372972]
[1755023637850,0.2205113,119710.0,119700.0,0.3405855]
[1755023638161,0.2205113,119710.0,119700.0,0.3605655]
[1755023638657,0.2205113,119710.0,119700.0,0.89372972]
[1755023639160,0.2205113,119710.0,119700.0,0.89472972]
[1755023639360,0.2205113,119710.0,119700.0,0.3895555]
[1755023639658,0.2205113,119710.0,119700.0,0.1408347]
[1755023639854,0.2205113,119710.0,119700.0,0.1756547]
[1755023640065,0.2205113,119710.0,119700.0,0.09212]
[1755023640560,0.74409362,119710.0,119700.0,0.1180082]
[1755023641559,0.2389194,119710.0,119700.0,0.1180082]
[1755023641755,0.74409362,119710.0,119700.0,0.1180082]
[1755023642252,0.74409362,119710.0,119700.0,0.06929]
[1755023642448,0.74409362,119710.0,119700.0,0.1528283]
[1755023643261,1.24399362,119710.0,119700.0,0.06929]
[1755023643460,1.36399362,119710.0,119700.0,0.001]
[1755023643649,1.24399362,119710.0,119700.0,0.001]
[1755023643853,1.35399362,119710.0,119700.0,0.001]
[1755023644058,1.24399362,119710.0,119700.0,0.001]
[1755023644552,0.8488194,119710.0,119700.0,0.001]
[1755023644751,0.7388194,119710.0,119700.0,0.001]
[1755023644955,0.7388194,119710.0,119700.0,0.0845382]
[1755023645160,1.5230594,119710.0,119700.0,0.0845382]
[1755023645359,1.5240594,119710.0,119700.0,0.1193582]
[1755023645554,0.7398194,119710.0,119700.0,0.1922282]
[1755023645755,1.5252994,119710.0,119700.0,0.72461242]
[1755023645958,0.7408194,119710.0,119700.0,0.2194382]
[1755023646152,1.5257394,119710.0,119700.0,0.72461242]
[1755023646558,1.5257394,119710.0,119700.0,0.2194382]
[1755023646860,1.5257394,119710.0,119700.0,0.1922282]
[1755023647259,1.5257394,119710.0,119700.0,0.1714782]
[1755023648464,1.5257394,119710.0,119700.0,0.0835382]
[1755023648855,1.5257394,119710.0,119700.0,0.72461242]
[1755023649059,0.7408194,119710.0,119700.0,0.72461242]
[1755023649363,1.5269593,119710.0,119700.0,0.72461242]
[1755023649558,1.5269593,119710.0,119700.0,0.2194382]
[1755023649863,3.0269593,119710.0,119700.0,0.72461242]
[1755023650062,1.5269593,119710.0,119700.0,0.72461242]
[1755023650257,1.5269593,119710.0,119700.0,0.2194382]
[1755023650564,3.0269593,119710.0,119700.0,0.2194382]
[1755023650764,3.0269593,119710.0,119700.0,0.72461242]
[1755023650955,3.0269593,119710.0,119700.0,0.67665242]
[1755023651151,3.0269593,119710.0,119700.0,0.1153482]
[1755023651355,3.53213352,119710.0,119690.0,0.3334141]
[1755023651556,0.2225982,119700.0,119690.0,0.84374832]
[1755023651760,0.2225982,119700.0,119690.0,0.86449832]
[1755023651961,0.2225982,119700.0,119690.0,0.89170832]
[1755023652161,0.2225982,119700.0,119690.0,0.2550294]
[1755023652369,0.72777242,119700.0,119690.0,0.2550294]
[1755023652563,0.2225982,119700.0,119690.0,0.2757794]
[1755023653260,0.2225982,119700.0,119690.0,0.3029894]
[1755023654155,0.2225982,119700.0,119690.0,0.2204447]
[1755023654862,0.72777242,119700.0,119690.0,0.2204447]
[1755023655365,0.2225982,119700.0,119690.0,0.2204447]
[1755023656459,0.2225982,119700.0,119690.0,0.1369]
[1755023657064,0.2225982,119700.0,119690.0,0.2204451]
[1755023657266,0.2225982,119700.0,119690.0,0.1369]
[1755023657770,0.2225982,119700.0,119690.0,0.2204452]
[1755023657961,0.2225982,119700.0,119690.0,0.0845452]
[1755023658163,0.2225982,119700.0,119690.0,0.03582]
[1755023658465,0.2225982,119700.0,119690.0,0.001]
[1755023658672,0.72777242,119700.0,119690.0,0.0845452]
[1755023659064,0.72777242,119700.0,119690.0,0.001]
[1755023659359,0.84777242,119700.0,119690.0,0.001]
[1755023659766,0.72777242,119700.0,119690.0,0.001]
[1755023659966,0.2225982,119700.0,119690.0,0.001]
[1755023660161,1.13867242,119700.0,119690.0,0.001]
[1755023660566,1.26867242,119700.0,119690.0,0.001]
[1755023660767,1.25867242,119700.0,119690.0,0.001]
[1755023661170,0.7534982,119700.0,119690.0,0.001]
[1755023661366,1.25867242,119700.0,119690.0,0.001]
[1755023661568,2.05063242,119700.0,119690.0,0.001]
[1755023661870,1.93063242,119700.0,119690.0,0.001]
[1755023662271,0.6334982,119700.0,119690.0,0.0845452]
[1755023662461,1.4254582,119700.0,119690.0,0.2204452]
[1755023662671,1.93063242,119700.0,119690.0,0.1369]
[1755023662874,1.93063242,119700.0,119690.0,0.001]
[1755023663979,2.04063242,119700.0,119690.0,0.001]
[1755023664272,1.93063242,119700.0,119690.0,0.001]
[1755023665075,1.13867242,119700.0,119690.0,0.001]
[1755023665270,2.03999242,119700.0,119690.0,0.001]
[1755023665469,2.06494424,119700.0,119690.0,0.001]
[1755023666774,0.1396118,119680.0,119670.0,0.1671142]
[1755023666972,1.0135718,119680.0,119670.0,0.0835561]
[1755023667269,1.0135718,119680.0,119670.0,0.1183761]
[1755023667479,1.0135718,119680.0,119670.0,0.1366788]
[1755023667665,0.1396187,119670.0,119660.0,0.4701565]
[1755023667871,0.2226187,119670.0,119660.0,0.97533072]
[1755023668473,0.28864034,119670.0,119660.0,0.4701565]
[1755023668673,0.28864034,119670.0,119660.0,0.97533072]
[1755023669077,0.28864034,119670.0,119660.0,0.1359]
[1755023669275,0.79381456,119670.0,119660.0,0.2187459]
[1755023669681,0.79381456,119670.0,119660.0,0.13718]
[1755023669876,0.79381456,119670.0,119660.0,0.220745]
[1755023670273,0.28864034,119670.0,119660.0,0.08994]
[1755023670474,0.1389457,119660.0,119650.0,0.4650331]
[1755023670679,1.0183357,119660.0,119650.0,0.4650331]
[1755023670882,1.0183357,119660.0,119650.0,0.97020732]
[1755023671181,1.0183357,119660.0,119650.0,0.4650331]
[1755023671482,1.0183357,119660.0,119650.0,0.3814609]
[1755023672082,1.0183357,119660.0,119650.0,0.88663512]
[1755023672579,0.90017374,119670.0,119660.0,0.0835657]
[1755023672775,1.75113824,119670.0,119660.0,0.71948992]
[1755023673674,1.75213824,119670.0,119660.0,0.71948992]
[1755023673875,0.2207827,119650.0,119640.0,0.0836596]
[1755023674082,1.52295692,119650.0,119640.0,0.03159]
[1755023674582,1.52295692,119650.0,119640.0,8e-05]
[1755023674783,1.52327692,119650.0,119640.0,8e-05]
[1755023675082,1.52327692,119650.0,119640.0,0.00208]
[1755023675677,1.52327692,119650.0,119640.0,0.0856597]
[1755023675876,1.52327692,119650.0,119640.0,0.0866597]
[1755023676179,1.52327692,119650.0,119640.0,0.00308]
[1755023676682,1.52327692,119650.0,119640.0,0.0856597]
[1755023676882,1.52327692,119650.0,119640.0,0.0846597]
[1755023677184,1.52327692,119650.0,119640.0,0.03259]
[1755023677481,1.0181027,119650.0,119640.0,0.00108]
[1755023677882,1.52327692,119650.0,119640.0,0.00108]
[1755023678079,1.54175709,119650.0,119640.0,0.00108]
[1755023678284,0.23926287,119650.0,119640.0,0.00108]
[1755023678485,1.54115709,119650.0,119640.0,0.00108]
[1755023678685,1.03598287,119650.0,119640.0,0.00108]
[1755023678887,1.54115709,119650.0,119640.0,0.00108]
[1755023679683,1.65115709,119650.0,119640.0,0.00108]
[1755023680188,0.2207886,119640.0,119630.0,0.0001]
[1755023680384,0.72596282,119640.0,119630.0,0.0001]
[1755023680585,0.83706282,119640.0,119630.0,0.0001]
[1755023681283,0.72706282,119640.0,119630.0,0.0001]
[1755023681486,0.2218886,119640.0,119630.0,0.0021]
[1755023681991,0.72596282,119640.0,119630.0,0.0031]
[1755023682179,1.22586282,119640.0,119630.0,0.0031]
[1755023682888,0.7206886,119640.0,119630.0,0.0031]
[1755023683085,1.34586282,119640.0,119630.0,0.0031]
[1755023683295,1.85103704,119640.0,119630.0,0.0031]
[1755023683482,1.34586282,119640.0,119630.0,0.0031]
[1755023683682,1.4131312,119640.0,119630.0,0.0031]
[1755023683984,1.2931312,119640.0,119630.0,0.0031]
[1755023684788,0.7932312,119640.0,119630.0,0.0031]
[1755023684989,1.2931312,119640.0,119630.0,0.0031]
[1755023685682,1.2931312,119640.0,119630.0,0.0021]
[1755023685884,1.2951312,119640.0,119630.0,0.0021]
[1755023686189,1.2991312,119640.0,119630.0,0.0001]
[1755023686488,0.79395698,119640.0,119630.0,0.0001]
[1755023686688,1.2991312,119640.0,119630.0,0.0001]
[1755023690186,1.3491312,119640.0,119630.0,0.0001]
[1755023691290,0.7266886,119640.0,119630.0,0.58885962]
[1755023691591,1.5233285,119640.0,119630.0,0.2144354]
[1755023691783,1.5233285,119640.0,119630.0,0.71960962]
[1755023691980,1.5233285,119640.0,119630.0,0.2144354]
[1755023692384,0.55077,119640.0,119630.0,0.71960962]
[1755023692697,0.5059,119640.0,119630.0,0.71960962]
[1755023692892,0.5029,119640.0,119630.0,0.71960962]
[1755023693296,0.5844784,119640.0,119630.0,0.71960962]
[1755023693495,0.5009,119640.0,119630.0,0.2144354]
[1755023693791,0.5844785,119640.0,119630.0,0.71960962]
[1755023693992,0.4999,119640.0,119630.0,0.71960962]
[1755023694297,0.5009,119640.0,119630.0,1.44195984]
[1755023694494,0.5009,119640.0,119630.0,0.93678562]
[1755023695193,0.5009,119640.0,119630.0,1.44195984]
[1755023695391,0.39781,119640.0,119630.0,1.44195984]
[1755023695596,0.36541,119640.0,119630.0,1.44195984]
[1755023695894,0.36541,119640.0,119630.0,1.44295984]
[1755023696194,1.05812404,119670.0,119660.0,0.0835645]
[1755023696398,0.09356164,119670.0,119660.0,0.58873872]
[1755023696690,0.28678924,119670.0,119660.0,0.0835645]
[1755023696896,0.28678924,119670.0,119660.0,0.58873872]
[1755023697091,0.14894164,119670.0,119660.0,0.58873872]
[1755023697292,0.10719164,119670.0,119660.0,0.60953795]
[1755023697497,0.09356164,119670.0,119660.0,0.61053795]
[1755023697799,0.02754,119670.0,119660.0,0.0845645]
[1755023698100,0.02754,119670.0,119660.0,0.58973872]
[1755023698285,0.1110975,119670.0,119660.0,0.58973872]
[1755023698484,0.1110975,119670.0,119660.0,0.0845645]
[1755023698889,0.2207675,119670.0,119660.0,0.0835645]
[1755023699092,0.2207675,119670.0,119660.0,0.0927945]
[1755023699784,0.2207675,119670.0,119660.0,0.01023]
[1755023699989,0.72594172,119670.0,119660.0,0.01023]
[1755023700190,0.2207675,119670.0,119660.0,0.0937944]
[1755023700390,1.0263675,119670.0,119660.0,0.59896862]
[1755023700592,1.0263675,119670.0,119660.0,0.59796862]
[1755023700593,1.0263674,119670.0,119660.0,0.59796862]
[1755023700799,0.2207674,119670.0,119660.0,0.59796862]
[1755023701299,0.2207674,119670.0,119660.0,0.0927944]
[1755023702001,0.2207674,119670.0,119660.0,0.00923]
[1755023702195,0.2231844,119660.0,119650.0,0.0835671]
[1755023702402,0.2231844,119660.0,119650.0,0.0854571]
[1755023702895,0.2231913,119650.0,119640.0,0.0835766]
[1755023703100,0.2231983,119640.0,119630.0,0.68166802]
[1755023704601,0.2241983,119640.0,119630.0,0.68166802]
[1755023705595,0.2241983,119640.0,119630.0,0.1764938]
[1755023705796,0.2241983,119640.0,119630.0,0.68166802]
[1755023706191,0.2241983,119640.0,119630.0,0.1764938]
[1755023706595,0.2241983,119640.0,119630.0,0.68166802]
[1755023707096,0.2241983,119640.0,119630.0,0.1764938]
[1755023707296,0.2241983,119640.0,119630.0,0.68166802]
[1755023708596,0.2241983,119640.0,119630.0,0.1764938]
[1755023708896,0.2241983,119640.0,119630.0,0.68166802]
[1755023709201,0.2241983,119640.0,119630.0,0.51450422]
[1755023709903,0.2241983,119640.0,119630.0,0.00933]
[1755023710102,0.2241983,119640.0,119630.0,0.51450422]
[1755023710494,0.2241983,119640.0,119630.0,0.0001]
[1755023710698,0.2241983,119640.0,119630.0,0.51450422]
[1755023710999,0.2241983,119640.0,119630.0,0.00933]
[1755023711198,0.2241983,119640.0,119630.0,0.0929153]
[1755023711401,0.2241983,119640.0,119630.0,0.59808952]
[1755023711905,0.2241983,119640.0,119630.0,0.0929153]
[1755023712102,0.2241983,119640.0,119630.0,0.59808952]
[1755023712497,0.2241983,119640.0,119630.0,0.00933]
[1755023713406,0.72937252,119640.0,119630.0,0.00933]
[1755023713602,0.2241983,119640.0,119630.0,0.0001]
[1755023714510,0.2241983,119640.0,119630.0,0.00199]
[1755023714908,0.2241983,119640.0,119630.0,0.0001]
[1755023715104,1.65033252,119640.0,119630.0,0.0001]
[1755023715308,1.66033252,119640.0,119630.0,0.0001]
[1755023715810,1.0351583,119640.0,119630.0,0.0001]
[1755023716002,1.65033252,119640.0,119630.0,0.0001]
[1755023716509,1.0351583,119640.0,119630.0,0.0001]
[1755023716709,1.66033252,119640.0,119630.0,0.0001]
[1755023716910,1.0351583,119640.0,119630.0,0.0001]
[1755023717309,1.54033252,119640.0,119630.0,0.0001]
[1755023717501,1.67033252,119640.0,119630.0,0.0001]
[1755023717702,1.68918462,119640.0,119630.0,0.0001]
[1755023718011,1.67918462,119640.0,119630.0,0.0001]
[1755023718203,1.0540104,119640.0,119630.0,0.0001]
[1755023718404,1.55918462,119640.0,119630.0,0.0001]
[1755023718599,2.18908462,119640.0,119630.0,0.0001]
[1755023719503,1.6839104,119640.0,119630.0,0.0001]
[1755023719905,2.18908462,119640.0,119630.0,0.0001]
[1755023720608,1.6839104,119640.0,119630.0,0.0001]
[1755023720811,2.17908462,119640.0,119630.0,0.0001]
[1755023721110,2.17908462,119640.0,119610.0,0.0041]
[1755023721111,0.2232124,119620.0,119610.0,0.0041]
[1755023721305,0.1401064,119600.0,119590.0,0.1747185]
[1755023721500,1.54164062,119600.0,119590.0,0.00501]
[1755023721706,0.2232334,119590.0,119580.0,0.3439587]
[1755023721910,0.2232334,119590.0,119580.0,0.84913292]
[1755023722100,0.13962,119590.0,119580.0,0.84913292]
[1755023722614,0.13962,119600.0,119590.0,0.0912133]
[1755023722812,0.09439446,119600.0,119590.0,0.60097752]
[1755023723404,0.12759446,119600.0,119590.0,0.60097752]
[1755023723809,0.12775446,119600.0,119590.0,0.59622752]
[1755023724009,0.09439446,119600.0,119590.0,0.59908752]
[1755023724312,0.06524446,119600.0,119590.0,0.76820952]
[1755023724615,0.0565,119610.0,119600.0,0.0911005]
[1755023724807,0.11047,119610.0,119600.0,0.85774659]
[1755023725112,0.13962,119610.0,119600.0,0.2629989]
[1755023725316,0.13962,119610.0,119600.0,0.2602989]
[1755023725611,0.2232193,119610.0,119600.0,0.2508089]
[1755023726016,0.81796699,119610.0,119600.0,0.2508089]
[1755023726317,0.81796699,119610.0,119600.0,0.1672025]
[1755023726506,0.88457014,119610.0,119600.0,0.1672025]
[1755023726706,0.28982245,119610.0,119600.0,0.0836005]
[1755023726914,0.28982245,119610.0,119600.0,0.0856005]
[1755023727116,0.28982245,119610.0,119600.0,0.0857005]
[1755023727313,0.28982245,119610.0,119600.0,0.0847005]
[1755023727619,0.29082245,119610.0,119600.0,0.0846005]
[1755023728718,0.29182245,119610.0,119600.0,0.0836005]
[1755023729516,0.79172245,119610.0,119600.0,0.0836005]
[1755023730618,0.79072245,119610.0,119600.0,0.0836005]
[1755023730819,0.79272245,119610.0,119600.0,0.0836005]
[1755023731422,0.70912315,119610.0,119600.0,0.0892805]
[1755023731618,0.65415315,119610.0,119600.0,0.68418819]
[1755023731927,0.70792315,119610.0,119600.0,0.68418819]
[1755023732323,0.63016315,119610.0,119600.0,0.68581819]
[1755023732519,0.70740315,119610.0,119600.0,0.0910705]
[1755023732722,0.70740315,119610.0,119600.0,0.0894405]
[1755023732921,0.70640315,119610.0,119600.0,0.68418819]
[1755023733121,0.70740315,119610.0,119600.0,0.68581819]
[1755023733431,0.56850315,119610.0,119600.0,1.44778188]
[1755023733723,0.4360268,119610.0,119600.0,1.49978188]
[1755023733922,0.4360268,119610.0,119600.0,0.90503419]
[1755023734128,0.4637868,119610.0,119600.0,0.90503419]
[1755023734521,0.4962968,119610.0,119600.0,0.90603419]
[1755023734717,0.4637868,119610.0,119600.0,0.90803419]
[1755023734931,0.02776,119610.0,119600.0,0.90803419]
[1755023735519,0.09350831,119620.0,119610.0,0.0848396]
[1755023735730,0.09350831,119620.0,119610.0,0.68581729]
[1755023735920,0.20325831,119620.0,119610.0,0.0894396]
[1755023736125,0.20325831,119620.0,119610.0,0.68418729]
[1755023737237,0.20325831,119620.0,119610.0,0.0894396]
[1755023737532,0.20325831,119620.0,119610.0,0.68418729]
[1755023742732,0.20325831,119620.0,119610.0,0.68581729]
[1755023743545,0.06574831,119620.0,119610.0,0.68581729]
[1755023743746,0.02776,119630.0,119610.0,0.85301239]
[1755023744044,0.06027,119630.0,119620.0,0.68581039]
[1755023744740,0.09449912,119630.0,119620.0,0.68581039]
[1755023744946,0.001,119630.0,119620.0,0.68581039]
[1755023745848,0.002,119630.0,119620.0,0.68581039]
[1755023746048,1e-07,119630.0,119620.0,0.68581039]
[1755023746941,0.5152221,119640.0,119630.0,0.0910557]
[1755023747246,0.5364821,119640.0,119630.0,0.68580339]
[1755023747441,0.5364821,119640.0,119630.0,0.0910557]
[1755023747643,0.5701521,119640.0,119630.0,0.68580339]
[1755023747844,0.5924621,119640.0,119630.0,0.68580339]
[1755023748540,0.63643128,119640.0,119630.0,0.68580339]
[1755023748745,0.4827121,119640.0,119630.0,1.41497303]
[1755023748937,0.4827121,119640.0,119630.0,1.43273363]
[1755023750253,0.0466121,119640.0,119630.0,1.43373363]
[1755023751047,0.1563621,119640.0,119630.0,0.59958303]
[1755023751243,0.2399408,119640.0,119630.0,0.59828303]
[1755023751448,0.2399408,119640.0,119630.0,0.0865857]
[1755023752148,0.2399408,119640.0,119630.0,0.0895857]
[1755023752448,0.2399408,119640.0,119630.0,0.0952657]
[1755023752654,0.2399408,119640.0,119630.0,0.0912657]
[1755023753043,0.2399408,119640.0,119630.0,0.0848257]
[1755023753649,0.30652056,119640.0,119630.0,0.0836857]
[1755023754153,0.30652056,119640.0,119630.0,0.0894257]
[1755023754450,0.30652056,119640.0,119630.0,0.6839713]
[1755023754451,0.22294186,119640.0,119630.0,0.6839713]
[1755023754652,0.22294186,119640.0,119630.0,0.0894257]
[1755023754849,0.22294186,119640.0,119630.0,0.6839713]
[1755023755352,0.30652066,119640.0,119630.0,0.6839713]
[1755023755747,0.30652066,119640.0,119630.0,0.6849713]
[1755023755954,0.22294186,119640.0,119630.0,0.6849713]
[1755023759757,0.30652066,119640.0,119630.0,0.0904257]
[1755023760456,0.22294186,119640.0,119630.0,0.0904257]
[1755023761050,0.30652066,119640.0,119630.0,0.0904257]